bitfinex-derivatives/quotes_ETHF0:USTF0_20250115
["timestamp","ask_amount","ask_price","bid_price","bid_amount"]
[1736917667856,0.4591,3222.5,3222.3,40.8]
[1736917668056,0.4591,3222.5,3222.4,0.31046]
[1736917668454,3.96281379,3222.5,3222.4,0.31046]
[1736917669758,3.96281379,3222.5,3222.3,40.8]
[1736917669963,2.74870463,3222.4,3222.3,40.8]
[1736917670352,6.31799059,3222.4,3222.3,40.8]
[1736917670655,6.36714928,3222.4,3222.3,40.8]
[1736917671562,6.3671508,3222.4,3222.3,40.8]
[1736917671763,6.0566908,3222.4,3222.3,40.8]
[1736917672262,6.0566908,3222.4,3222.3,41.11047]
[1736917672453,6.00753059,3222.4,3222.3,40.8]
[1736917672849,6.31799059,3222.4,3222.3,40.8]
[1736917674868,6.00753059,3222.4,3222.3,40.8]
[1736917675158,6.00753059,3222.4,3222.3,41.11047]
[1736917675354,6.00753059,3222.4,3222.3,40.8]
[1736917675554,6.31799059,3222.4,3222.3,40.8]
[1736917676157,6.00753059,3222.4,3222.3,40.8]
[1736917676358,3.56928596,3222.4,3222.3,41.11047]
[1736917679369,3.45149174,3222.5,3222.4,0.31046]
[1736917679771,3.51824,3222.6,3222.4,0.31046]
[1736917680164,3.2669614,3222.5,3222.4,0.31046]
[1736917680365,3.2669614,3222.5,3222.3,40.8]
[1736917680561,3.2669614,3222.5,3222.4,0.31046]
[1736917681767,2.74864463,3223.1,3222.3,40.8]
[1736917681964,1.27821,3223.0,3222.3,40.8]
[1736917682268,2.43824463,3222.8,3222.7,0.31043]
[1736917682661,6.39262946,3222.8,3222.7,0.31043]
[1736917683872,3.95438483,3222.8,3222.7,0.31043]
[1736917684071,3.46828483,3222.8,3222.7,0.31043]
[1736917684372,3.46828483,3222.8,3222.7,3.51823]
[1736917690369,3.22907666,3223.2,3222.7,3.51823]
[1736917690669,1.4524,3223.4,3222.7,3.2078]
[1736917690670,0.31042,3222.9,3222.7,3.2078]
[1736917690867,0.9851,3222.8,3222.7,3.51823]
[1736917691065,4.7426503,3222.8,3222.7,3.51823]
[1736917694466,4.7426503,3222.8,3222.7,0.31043]
[1736917697777,3.7580503,3222.8,3222.7,0.31043]
[1736917698476,3.7580503,3222.8,3222.7,41.11043]
[1736917698477,3.2682503,3222.8,3222.7,41.11043]
[1736917698872,3.78321455,3223.2,3223.1,0.31039]
[1736917699080,0.4893,3223.2,3223.1,0.31039]
[1736917699373,3.78321455,3223.2,3223.1,0.31039]
[1736917699578,3.29391455,3223.2,3223.1,0.31039]
[1736917699775,3.2078,3223.4,3223.3,0.31038]
[1736917700074,6.61176556,3223.4,3223.3,0.31038]
[1736917700771,3.40396556,3223.4,3223.3,0.31038]
[1736917701075,2.43824463,3223.6,3223.1,3.2078]
[1736917701283,3.49850863,3223.5,3223.4,0.31037]
[1736917704481,3.47647808,3224.4,3224.3,0.31028]
[1736917704872,3.33311312,3224.8,3224.1,0.4821]
[1736917705172,2.43824463,3224.9,3224.7,0.31024]
[1736917705481,2.43824463,3224.9,3224.8,0.31023]
[1736917705980,5.97911346,3224.9,3224.8,0.31023]
[1736917706582,5.97911346,3224.9,3224.8,41.11023]
[1736917708883,5.97911346,3224.9,3224.7,0.31024]
[1736917709781,5.97911346,3224.9,3224.5,40.8]
[1736917709977,5.97911346,3224.9,3224.8,0.31023]
[1736917710574,5.97911346,3224.9,3224.5,40.8]
[1736917710786,5.97911346,3224.9,3224.8,0.31023]
[1736917712981,3.54086883,3224.9,3224.8,0.31023]
[1736917713287,3.2078,3225.1,3224.5,0.4859]
[1736917713476,3.2346968,3225.0,3224.9,0.31022]
[1736917713683,3.2078,3225.1,3224.9,40.8]
[1736917713885,3.2078,3225.1,3225.0,0.31021]
[1736917714293,6.53481011,3225.1,3225.0,0.31021]
[1736917716991,3.32701011,3225.1,3225.0,0.31021]
[1736917717288,3.32701011,3225.1,3224.4,3.2078]
[1736917717490,2.43824463,3224.7,3224.4,3.2078]
[1736917717692,1.77645,3224.6,3224.4,3.51807]
[1736917717892,4.79309045,3224.6,3224.4,3.2078]
[1736917718096,0.31028,3224.3,3224.1,0.3103]
[1736917718399,3.25696092,3224.5,3224.0,0.31031]
[1736917718400,2.74853463,3224.2,3224.0,0.31031]
[1736917718596,3.2078,3224.1,3224.0,41.11031]
[1736917718788,3.2078,3224.1,3224.0,40.8]
[1736917718994,7.11586174,3224.1,3223.9,0.31031]
[1736917719286,7.11586174,3224.1,3223.7,0.31033]
[1736917719287,0.80011,3224.0,3223.7,0.31033]
[1736917719492,3.72496463,3223.9,3223.8,40.8]
[1736917719694,7.32272637,3223.9,3223.8,40.8]
[1736917720098,7.37188155,3223.9,3223.8,40.8]
[1736917720697,7.32272637,3223.9,3223.8,40.8]
[1736917720897,7.37189037,3223.9,3223.6,0.31034]
[1736917721095,3.2078,3223.7,3223.6,0.31034]
[1736917721602,6.55008567,3223.7,3223.6,40.8]
[1736917722604,6.55008567,3223.7,3223.6,41.11035]
[1736917722901,6.55008567,3223.7,3223.6,40.8]
[1736917723106,6.86042567,3223.7,3223.6,40.8]
[1736917723306,6.55008567,3223.7,3223.6,40.8]
[1736917723804,6.86042567,3223.7,3223.6,40.8]
[1736917724801,6.55008567,3223.7,3223.6,40.8]
[1736917725197,6.55008567,3223.7,3223.6,41.11035]
[1736917725904,6.55008567,3223.7,3223.6,40.8]
[1736917726301,6.86042567,3223.7,3223.6,40.8]
[1736917727001,6.55008567,3223.7,3223.6,40.8]
[1736917728008,6.55008567,3223.7,3223.6,41.11035]
[1736917731003,6.86042567,3223.7,3223.6,40.8]
[1736917731404,0.31037,3223.4,3223.2,3.51818]
[1736917731602,3.85904463,3223.3,3223.2,0.31038]
[1736917731799,7.14074174,3223.3,3222.8,0.496]
[1736917731997,7.14074174,3223.3,3222.9,40.8]
[1736917732707,7.45112174,3223.3,3223.0,0.3104]
[1736917732906,7.45112174,3223.3,3222.9,40.8]
[1736917733204,7.45112174,3223.3,3223.1,0.31039]
[1736917733405,7.14074174,3223.3,3223.1,0.31039]
[1736917733605,7.14074174,3223.3,3223.2,0.31038]
[1736917733807,3.28169711,3223.3,3223.2,0.31038]
[1736917734203,3.42183266,3223.5,3222.9,40.8]
[1736917734409,2.74860463,3223.6,3222.9,40.8]
[1736917734611,2.74860463,3223.6,3223.3,0.31037]
[1736917734810,3.42183266,3223.5,3223.3,0.31037]
[1736917735508,3.42183266,3223.5,3223.4,0.31037]
[1736917736103,3.42183266,3223.5,3223.3,0.31037]
[1736917736104,3.73219266,3223.5,3223.3,0.31037]
[1736917736712,3.42183266,3223.5,3223.3,0.31037]
[1736917737011,3.42183266,3223.5,3223.4,0.31037]
[1736917737307,3.73219266,3223.5,3223.3,0.31037]
[1736917737508,3.42183266,3223.5,3223.4,0.31037]
[1736917737907,3.73219266,3223.5,3223.3,0.31037]
[1736917738110,3.42183266,3223.5,3223.3,0.31037]
[1736917738910,3.42183266,3223.5,3223.4,0.31037]
[1736917739114,3.73219266,3223.5,3223.3,0.31037]
[1736917739407,0.31037,3223.4,3223.2,0.31038]
[1736917739708,2.43824463,3223.6,3223.2,0.31038]
[1736917739914,5.8422843,3223.3,3222.9,40.8]
[1736917740105,2.74862463,3223.3,3223.0,0.3104]
[1736917740303,3.87033967,3223.2,3222.9,40.8]
[1736917740614,0.9246,3223.1,3223.0,0.3104]
[1736917741009,4.32334733,3223.1,3223.0,0.3104]
[1736917747912,4.32334733,3223.1,3222.9,40.8]
[1736917747913,0.3104,3223.0,3222.9,40.8]
[1736917748119,2.797738,3223.0,3222.9,40.8]
[1736917748321,6.1363567,3223.0,3222.9,40.8]
[1736917750112,3.3386187,3223.0,3222.9,41.11041]
[1736917757323,3.3386187,3223.0,3222.9,0.31041]
[1736917757922,3.3386187,3223.0,3222.9,41.11041]
[1736917759832,3.3386187,3223.0,3222.9,0.31041]
[1736917761726,8.98466333,3223.0,3222.9,0.31041]
[1736917773134,6.5464187,3223.0,3222.9,0.31041]
[1736917775535,8.98466333,3223.0,3222.9,0.31041]
[1736917776638,8.98466333,3223.0,3221.4,10.48257353]
[1736917776639,9.03373108,3223.0,3221.4,10.48257353]
[1736917776843,2.43824463,3221.7,3221.6,5.16038902]
[1736917777239,3.2078,3221.9,3221.8,0.31052]
[1736917777538,6.5970265,3221.9,3221.8,0.31052]
[1736917777842,7.0882265,3221.9,3221.8,0.31052]
[1736917778041,7.0882265,3221.9,3221.4,44.8169]
[1736917778246,2.43824463,3221.7,3221.5,0.31255]
[1736917778544,0.4987,3221.6,3221.5,0.31255]
[1736917778744,4.03959998,3221.6,3221.5,0.31255]
[1736917779540,4.03959998,3221.6,3221.5,0.002]
[1736917779749,4.03959998,3221.6,3221.5,0.31255]
[1736917781041,4.03959998,3221.6,3221.5,0.002]
[1736917781642,4.35013998,3221.6,3221.5,0.002]
[1736917781843,0.31056,3221.4,3220.9,0.3106]
[1736917782050,2.43824463,3221.0,3220.9,0.3106]
[1736917782443,6.37780653,3221.0,3220.9,41.1106]
[1736917783948,6.37780653,3221.0,3220.9,40.8]
[1736917784148,6.86880653,3221.0,3220.9,40.8]
[1736917784350,0.31062,3220.9,3220.5,3.2078]
[1736917784548,2.43824463,3220.6,3220.5,3.2078]
[1736917784742,2.43824463,3220.6,3220.5,44.0078]
[1736917784938,6.03317279,3220.6,3220.5,44.31845]
[1736917785239,3.59492816,3220.6,3220.5,44.31845]
[1736917785644,3.54154252,3220.8,3220.7,0.31062]
[1736917785844,2.89714463,3220.9,3220.7,0.31062]
[1736917786247,3.54533476,3220.8,3220.5,44.0078]
[1736917786447,3.54533476,3220.8,3220.6,0.31063]
[1736917787555,3.54533476,3220.8,3220.5,44.0078]
[1736917787754,3.54533476,3220.8,3220.7,0.31063]
[1736917788254,3.54533476,3220.8,3220.5,44.0078]
[1736917788552,3.54533476,3220.8,3220.6,0.31063]
[1736917789050,3.54533476,3220.8,3220.7,0.31063]
[1736917789351,3.54533476,3220.8,3220.6,0.31063]
[1736917789751,3.54533476,3220.8,3220.5,44.31844]
[1736917789948,3.54533476,3220.8,3220.6,0.31063]
[1736917790141,3.54533476,3220.8,3220.5,44.0078]
[1736917790345,3.54533476,3220.8,3220.5,44.31844]
[1736917790545,3.54533476,3220.8,3220.6,0.31063]
[1736917791049,3.54533476,3220.8,3220.7,0.31063]
[1736917791345,2.43824463,3221.2,3220.6,0.4834]
[1736917791552,3.37925613,3220.9,3220.6,0.4834]
[1736917791749,2.43824463,3221.2,3221.0,0.31059]
[1736917791750,3.37925613,3221.1,3221.0,0.31059]
[1736917792149,2.43824463,3221.2,3221.1,0.31059]
[1736917792351,3.4758217,3221.1,3221.0,0.31059]
[1736917792658,5.91406633,3221.2,3220.6,0.4834]
[1736917792852,2.43824463,3221.2,3221.1,0.31059]
[1736917793158,2.43824463,3221.2,3221.0,0.31059]
[1736917793159,3.29101843,3221.1,3221.0,0.31059]
[1736917793354,5.72926306,3221.2,3221.0,0.31059]
[1736917793548,2.43824463,3221.2,3221.1,0.31059]
[1736917793751,3.29101843,3221.1,3221.0,0.31059]
[1736917793954,3.29101843,3221.1,3220.9,0.3106]
[1736917794254,2.43824463,3221.2,3221.0,0.3106]
[1736917794757,3.51016305,3221.1,3221.0,0.3106]
[1736917796554,3.3153745,3221.2,3220.7,1.08637]
[1736917796853,3.3153745,3221.2,3221.1,0.31059]
[1736917797058,3.2078,3221.6,3221.5,0.31055]
[1736917797353,6.58221749,3221.6,3221.5,0.31055]
[1736917797546,6.58221749,3221.6,3220.9,3.2078]
[1736917797749,9.02046212,3221.6,3221.5,0.31055]
[1736917798452,9.33100212,3221.6,3221.4,0.31055]
[1736917799356,9.33100212,3221.6,3221.5,0.31055]
[1736917799357,3.37441749,3221.6,3221.5,0.31055]
[1736917799754,3.51231957,3221.7,3221.6,0.31054]
[1736917799958,3.51231957,3221.7,3221.6,41.11054]
[1736917800149,0.9421,3221.8,3221.7,0.31053]
[1736917800356,3.45446047,3221.7,3221.6,41.11054]
[1736917800864,0.4529,3221.9,3221.8,0.31052]
[1736917801160,3.98950545,3221.9,3221.8,0.31052]
[1736917801656,3.98950545,3221.9,3221.4,3.2078]
[1736917801657,6.42775008,3221.9,3221.4,3.2078]
[1736917801861,6.42775008,3221.9,3221.7,0.31053]
[1736917802056,6.73826008,3221.9,3221.6,0.31053]
[1736917802861,3.53660545,3221.9,3221.8,0.31052]
[1736917803164,4.1882,3222.5,3222.4,0.31046]
[1736917803558,4.1882,3222.5,3222.0,0.3105]
[1736917803559,3.46633428,3222.4,3222.0,0.3105]
[1736917803760,3.46633428,3222.4,3221.9,0.3105]
[1736917803761,2.43824463,3222.1,3221.9,0.3105]
[1736917803963,2.43824463,3222.1,3222.0,0.3105]
[1736917804467,5.78110482,3222.1,3222.0,0.3105]
[1736917804665,5.78110482,3222.1,3221.5,40.8]
[1736917804873,5.78110482,3222.1,3221.9,0.31051]
[1736917805362,5.78110482,3222.1,3221.5,40.8]
[1736917805557,6.09159482,3222.1,3221.8,0.31051]
[1736917805863,6.09159482,3222.1,3221.7,0.31052]
[1736917806063,5.78110482,3222.1,3221.5,40.8]
[1736917806266,9.29940482,3222.1,3221.7,0.31052]
[1736917806563,8.98890482,3222.1,3221.5,40.8]
[1736917806753,0.31052,3221.9,3221.6,0.31054]
[1736917806960,8.98890482,3222.1,3221.5,40.8]
[1736917806961,3.42044463,3221.8,3221.5,40.8]
[1736917807266,7.06526362,3221.8,3221.5,41.11055]
[1736917807660,6.75473362,3221.8,3221.6,0.31054]
[1736917808359,6.75473362,3221.8,3221.5,40.8]
[1736917808664,7.06525362,3221.8,3221.5,41.11054]
[1736917809164,0.31053,3221.7,3221.5,41.11054]
[1736917809563,3.54163737,3221.6,3221.5,41.11054]
[1736917810564,6.86561876,3221.7,3221.5,40.8]
[1736917810769,3.2078,3221.7,3221.5,41.11055]
[1736917810955,3.59939815,3221.6,3221.5,41.11055]
[1736917813459,3.59939815,3221.6,3221.5,40.8]
[1736917813666,3.59939815,3221.6,3221.5,41.11055]
[1736917817765,3.59939815,3221.6,3221.0,3.6963]
[1736917817965,0.31056,3221.4,3221.2,0.31057]
[1736917818368,3.42885097,3221.3,3221.2,0.31057]
[1736917818671,3.42885097,3221.3,3221.1,41.11058]
[1736917818970,3.39754463,3221.2,3221.1,40.8]
[1736917819171,3.39754463,3221.2,3221.0,3.2078]
[1736917819369,6.7959051,3221.2,3220.6,3.2078]
[1736917819570,2.43824463,3220.7,3220.6,3.2078]
[1736917819969,5.85111225,3220.7,3220.6,3.2078]
[1736917820373,3.41286762,3220.7,3220.6,3.2078]
[1736917820574,3.41286762,3220.7,3220.6,3.51844]
[1736917820774,2.74885463,3220.9,3220.6,3.51844]
[1736917821077,3.35554336,3220.8,3220.6,3.51844]
[1736917821268,0.499,3220.8,3220.6,3.51844]
[1736917821576,3.89351112,3220.8,3220.6,3.51844]
[1736917822074,3.89351112,3220.8,3220.7,0.31063]
[1736917823477,3.39451112,3220.8,3220.7,0.31063]
[1736917823677,3.39451112,3220.8,3220.7,0.76723]
[1736917823876,3.73339424,3221.1,3221.0,0.3106]
[1736917824178,0.499,3221.1,3221.0,0.3106]
[1736917824371,4.06047779,3221.1,3221.0,0.3106]
[1736917824577,4.37106779,3221.1,3220.8,0.31061]
[1736917824777,2.43824463,3220.9,3220.8,0.31061]
[1736917825170,5.72782162,3220.9,3220.8,0.31061]
[1736917826380,3.28957699,3220.9,3220.8,0.31061]
[1736917826879,3.45696445,3221.0,3220.9,0.3106]
[1736917827077,0.499,3221.1,3220.9,0.3106]
[1736917827373,3.23451827,3221.0,3220.9,0.3106]
[1736917828483,3.23451827,3221.0,3220.4,44.0078]
[1736917828778,3.2078,3220.8,3220.6,0.31063]
[1736917828970,3.2078,3220.8,3220.7,0.31063]
[1736917829369,6.48608108,3220.8,3220.7,0.31063]
[1736917829577,6.48608108,3220.8,3220.6,0.31063]
[1736917830682,6.79670108,3220.8,3220.5,0.31064]
[1736917830981,6.48608108,3220.8,3220.6,0.31063]
[1736917832482,6.48608108,3220.8,3220.4,40.8]
[1736917832779,6.48608108,3220.8,3220.7,0.31063]
[1736917834879,3.27828108,3220.8,3220.7,0.31063]
[1736917835380,0.80959,3221.1,3220.4,44.0078]
[1736917835580,3.56868953,3221.0,3220.8,0.31061]
[1736917835783,0.80959,3221.1,3220.8,0.31061]
[1736917835971,2.43824463,3220.9,3220.4,44.0078]
[1736917836174,2.43824463,3220.9,3220.6,0.31063]
[1736917836882,3.5635961,3220.8,3220.6,0.31063]
[1736917837180,3.8742261,3220.8,3220.6,0.31063]
[1736917838386,0.31063,3220.7,3220.4,41.11065]
[1736917838582,3.38974463,3220.6,3220.4,40.8]
[1736917838887,7.08121541,3220.6,3220.0,3.2078]
[1736917839072,3.84404463,3220.6,3220.0,3.6926]
[1736917839387,3.5760899,3220.5,3220.1,40.8]
[1736917839579,2.43824463,3220.3,3220.1,41.11068]
[1736917839784,2.43824463,3220.3,3220.2,0.31067]
[1736917840178,5.7453357,3220.3,3220.2,0.31067]
[1736917841885,5.7453357,3220.3,3220.1,41.11068]
[1736917842087,5.7453357,3220.3,3220.2,0.31067]
[1736917843083,6.0560057,3220.3,3220.1,40.8]
[1736917843287,6.0560057,3220.3,3220.0,3.2078]
[1736917843485,6.0560057,3220.3,3220.1,0.31068]
[1736917843685,5.7453357,3220.3,3220.1,0.31068]
[1736917843986,5.7453357,3220.3,3220.2,0.31067]
[1736917844186,8.9531357,3220.3,3220.1,0.31068]
[1736917844493,8.9531357,3220.3,3220.2,0.31067]
[1736917845290,8.9531357,3220.3,3219.8,0.00583561]
[1736917845483,2.43824463,3219.9,3219.8,0.31654561]
[1736917845788,2.43824463,3220.2,3220.1,0.31068]
[1736917846086,5.86193392,3220.2,3220.1,0.31068]
[1736917846395,5.86193392,3220.2,3220.1,41.11068]
[1736917846876,5.86193392,3220.2,3220.1,0.31068]
[1736917850690,3.42368929,3220.2,3220.1,0.31068]
[1736917852386,3.44335638,3220.3,3220.0,0.31069]
[1736917852586,0.4699,3220.1,3220.0,0.31069]
[1736917852988,3.91325638,3220.1,3220.0,0.31069]
[1736917854899,3.44335638,3220.1,3220.0,3.51849]
[1736917856083,3.51839,3221.1,3221.0,0.3106]
[1736917856084,3.2078,3221.1,3221.0,0.3106]
[1736917856489,6.5546452,3221.1,3221.0,0.3106]
[1736917857297,3.3468452,3221.1,3221.0,0.3106]
[1736917857695,3.43944317,3221.4,3220.9,0.77651]
[1736917857894,4.6601,3221.5,3221.0,0.4615]
[1736917858091,4.6601,3221.5,3221.4,0.31056]
[1736917858395,7.99293065,3221.5,3221.4,0.31056]
[1736917862601,7.99293065,3221.5,3220.8,0.31061]
[1736917862796,2.43824463,3220.9,3220.7,0.31062]
[1736917863096,0.9348,3220.8,3220.7,0.31062]
[1736917863303,4.88084439,3220.8,3220.7,0.31062]
[1736917863601,4.88084439,3220.8,3220.4,3.2078]
[1736917863899,4.88084439,3220.8,3220.7,0.31063]
[1736917864699,5.19146439,3220.8,3220.4,3.2078]
[1736917864902,5.19146439,3220.8,3220.5,0.31064]
[1736917865099,0.31063,3220.7,3220.5,0.31064]
[1736917865400,3.57362601,3220.6,3220.5,0.31064]
[1736917865806,3.88425601,3220.7,3220.5,0.31064]
[1736917865997,0.31063,3220.7,3220.5,0.31064]
[1736917866301,3.24729394,3220.6,3220.5,0.31064]
[1736917867098,3.24729394,3220.7,3220.3,1.08733]
[1736917867298,1.4242,3220.8,3220.4,3.2078]
[1736917867600,3.2078,3220.9,3220.8,0.31062]
[1736917868005,3.23372201,3220.8,3220.7,0.31063]
[1736917868304,4.6452,3221.5,3221.4,0.31056]
[1736917868499,4.1815,3221.5,3221.4,0.31056]
[1736917868813,6.46738744,3221.5,3221.4,0.31056]
[1736917870595,6.46738744,3221.5,3221.2,0.31057]
[1736917870596,6.77793744,3221.5,3221.2,0.31057]
[1736917870807,2.88954463,3221.4,3221.3,0.31056]
[1736917871199,6.11779223,3221.4,3221.3,0.31056]
[1736917871700,3.6795476,3221.4,3221.3,0.31056]
[1736917872701,3.6795476,3221.4,3221.2,0.31058]
[1736917872900,3.2282476,3221.4,3221.3,0.31057]
[1736917877102,5.97705223,3221.4,3221.1,0.31058]
[1736917877307,5.66649223,3221.4,3221.3,0.31057]
[1736917877704,5.66649223,3221.4,3220.9,3.5171]
[1736917877905,2.74883463,3221.1,3220.9,3.5184]
[1736917878202,0.7937,3221.0,3220.9,3.2078]
[1736917878405,4.64499319,3221.0,3220.9,3.2078]
[1736917878604,0.31064,3220.6,3220.3,0.31066]
[1736917878907,3.2078,3220.5,3220.0,30.0]
[1736917879108,7.04489319,3220.5,3220.3,0.31066]
[1736917879506,7.35554319,3220.5,3220.3,0.31066]
[1736917879812,7.04489319,3220.5,3220.3,0.31066]
[1736917880506,7.04489319,3220.5,3220.1,40.8]
[1736917880713,7.04489319,3220.5,3220.4,0.31065]
[1736917881711,7.04489319,3220.5,3220.3,0.31066]
[1736917881911,7.50679319,3220.5,3220.3,0.31066]
[1736917882607,7.50679319,3220.5,3220.0,30.0]
[1736917882812,2.43824463,3220.1,3220.0,30.31069]
[1736917883207,5.95547987,3220.1,3220.0,30.31069]
[1736917884008,5.95547987,3220.1,3220.0,30.0]
[1736917884208,9.47395987,3220.1,3220.0,30.0]
[1736917884409,9.16327987,3220.1,3220.0,30.0]
[1736917885013,9.16327987,3220.1,3220.0,30.31069]
[1736917885316,11.96118458,3220.1,3220.0,18.61819801]
[1736917885512,11.96118458,3220.1,3220.0,17.40021018]
[1736917885820,9.52293995,3220.1,3220.0,12.87980142]
[1736917886014,9.52291276,3220.1,3220.0,12.87980142]
[1736917888111,11.96115739,3220.1,3220.0,12.87980142]
[1736917888606,12.08466813,3220.1,3220.0,11.6181032]
[1736917888809,14.52291276,3220.1,3220.0,11.6181032]
[1736917890121,0.31072,3219.7,3219.6,40.8]
[1736917890415,5.95676463,3219.7,3219.6,40.8]
[1736917890618,9.39844256,3219.7,3219.6,40.8]
[1736917894316,6.64947793,3219.7,3219.6,40.8]
[1736917894516,6.96019793,3219.7,3219.6,40.8]
[1736917896922,6.64947793,3219.7,3219.6,40.8]
[1736917897221,6.64947793,3219.7,3219.6,41.11073]
[1736917898426,6.64947793,3219.7,3219.6,40.8]
[1736917898726,6.64947793,3219.7,3219.6,41.11073]
[1736917900424,3.44167793,3219.7,3219.6,41.11073]
[1736917900822,3.50660499,3219.8,3219.6,41.11073]
[1736917901118,0.31071,3219.9,3219.6,41.11073]
[1736917901425,3.56244298,3219.8,3219.6,41.11073]
[1736917901925,3.87316298,3219.8,3219.6,41.11073]
[1736917902223,0.31072,3219.8,3219.6,41.11073]
[1736917902618,3.49079241,3219.7,3219.6,41.11073]
[1736917903125,0.31072,3219.8,3219.6,41.11073]
[1736917903326,3.80150241,3219.9,3219.6,41.11073]
[1736917903527,3.40226784,3219.7,3219.6,41.11073]
[1736917903729,0.31071,3219.8,3219.6,41.11073]
[1736917903730,3.71297784,3219.8,3219.6,41.11073]
[1736917904023,3.40226784,3219.9,3219.6,40.8]
[1736917904327,3.58041464,3219.7,3219.6,40.8]
[1736917904627,3.2078,3219.8,3219.7,0.31072]
[1736917904829,0.7994,3220.0,3219.7,0.31072]
[1736917905132,0.7994,3220.0,3219.6,41.11073]
[1736917905133,3.58040464,3219.8,3219.6,41.11073]
[1736917905425,0.31071,3219.8,3219.6,41.11073]
[1736917905625,0.31071,3219.8,3219.6,40.8]
[1736917905626,3.3471697,3219.7,3219.6,40.8]
[1736917905826,3.3471697,3219.7,3219.6,41.11073]
[1736917906029,3.6578897,3219.7,3219.6,40.8]
[1736917906428,0.31072,3219.7,3219.6,40.8]
[1736917906631,3.58548824,3219.7,3219.6,40.8]
[1736917908131,4.08618824,3219.7,3219.6,40.8]
[1736917909728,5.07246824,3219.7,3217.5,8.00031187]
[1736917909925,5.07246824,3219.7,3217.5,4.87315075]
[1736917909926,3.2078,3218.1,3217.5,4.87315075]
[1736917910124,3.2078,3218.1,3217.6,0.4753]
[1736917910330,3.38278153,3218.0,3217.7,40.8]
[1736917910527,3.38278153,3218.0,3217.9,0.3109]
[1736917910730,3.2078,3218.1,3217.7,3.2078]
[1736917910933,3.2078,3218.1,3217.9,0.31089]
[1736917911231,3.2078,3218.1,3218.0,40.8]
[1736917915429,6.50415324,3218.1,3218.0,40.8]
[1736917916038,6.50415324,3218.1,3218.0,41.11089]
[1736917916944,6.50415324,3218.1,3218.0,40.8]
[1736917918042,8.94239787,3218.1,3218.0,40.8]
[1736917918239,0.31093,3217.6,3217.3,3.2078]
[1736917918446,2.43824463,3217.4,3217.3,3.51875]
[1736917918742,5.86576136,3217.4,3217.3,44.31875]
[1736917919739,3.42751673,3217.4,3217.3,44.31875]
[1736917920134,3.36597121,3217.6,3217.4,0.31094]
[1736917920336,2.43824463,3217.7,3217.4,0.31094]
[1736917920734,3.55876483,3217.6,3217.3,44.0078]
[1736917920937,2.43824463,3217.4,3217.3,44.0078]
[1736917921338,5.99700946,3217.4,3217.3,44.0078]
[1736917921534,5.99700946,3217.4,3217.3,44.31875]
[1736917922045,5.99700946,3217.4,3217.3,44.0078]
[1736917922237,5.99700946,3217.4,3217.3,44.31875]
[1736917923041,6.30794946,3217.4,3217.3,44.0078]
[1736917923639,3.55876483,3217.4,3217.3,44.31875]
[1736917924541,3.55876483,3217.4,3217.3,41.11095]
[1736917924739,6.76656483,3217.4,3217.3,41.11095]
[1736917926451,3.2078,3217.8,3217.7,0.31092]
[1736917926843,6.51738053,3217.8,3217.7,0.31092]
[1736917927742,6.51738053,3217.8,3217.6,0.31092]
[1736917927942,2.43824463,3217.7,3217.6,0.31092]
[1736917928446,5.78770958,3217.7,3217.6,0.31092]
[1736917929047,3.34946495,3217.7,3217.6,0.31092]
[1736917931343,3.2078,3217.8,3217.7,0.31092]
[1736917931747,6.79885358,3217.8,3217.7,0.31092]
[1736917932650,3.2078,3217.8,3217.7,0.31092]
[1736917932852,3.2078,3217.8,3217.7,41.11092]
[1736917933044,0.31084,3218.6,3217.7,41.11092]
[1736917933045,3.2078,3218.9,3217.7,49.0078]
[1736917933244,3.2078,3218.9,3218.8,0.31081]
[1736917933443,3.2078,3218.9,3218.1,0.77719]
[1736917933444,6.51829271,3218.9,3218.1,0.77719]
[1736917933645,2.43824463,3218.7,3218.6,0.31082]
[1736917933851,2.43824463,3218.7,3218.2,0.3099]
[1736917934045,3.2078,3218.4,3218.3,0.31086]
[1736917934846,9.13259437,3218.4,3217.8,0.9665]
[1736917935152,6.69434974,3218.4,3218.3,0.31086]
[1736917941559,3.2078,3218.4,3218.3,0.31086]
[1736917941959,2.90334463,3218.7,3218.6,0.31083]
[1736917942160,0.4651,3218.7,3218.6,0.31083]
[1736917942758,0.4651,3218.7,3218.6,41.11083]
[1736917943356,3.2078,3219.0,3218.9,0.3108]
[1736917947159,3.2078,3219.0,3218.5,0.4714]
[1736917947160,9.05467015,3219.0,3218.2,3.2078]
[1736917947357,0.4673,3218.9,3218.8,0.31081]
[1736917947754,3.98441425,3218.9,3218.8,0.31081]
[1736917949057,3.98093128,3218.9,3218.8,0.31081]
[1736917949765,3.98093128,3218.9,3218.2,3.2078]
[1736917949965,0.4512,3218.8,3218.7,0.31082]
[1736917950364,4.05045527,3218.8,3218.7,0.31082]
[1736917951666,4.05045527,3218.8,3218.2,3.2078]
[1736917951868,2.43824463,3218.6,3218.5,0.31083]
[1736917952167,0.4512,3218.8,3218.6,0.31082]
[1736917952568,3.57427926,3218.7,3218.6,0.31082]
[1736917954771,0.4512,3218.8,3218.6,40.8]
[1736917955060,0.4512,3218.8,3218.7,0.31082]
[1736917955466,3.69327952,3218.8,3218.7,0.31082]
[1736917956462,3.69327952,3218.8,3218.6,40.8]
[1736917956463,4.00408952,3218.8,3218.6,40.8]
[1736917957769,3.69327952,3218.8,3218.6,40.8]
[1736917957970,3.69327952,3218.8,3218.7,0.31082]
[1736917960178,3.24207952,3218.8,3218.7,0.31082]
[1736917960368,0.4779,3218.8,3218.7,0.31082]
[1736917960661,3.82764063,3218.8,3218.7,0.31082]
[1736917962974,3.82764063,3218.8,3218.6,40.8]
[1736917963174,3.82764063,3218.8,3218.6,41.11082]
[1736917965365,3.82764063,3218.8,3218.7,0.31082]
[1736917966678,3.34974063,3218.8,3218.7,0.31082]
[1736917966882,0.4528,3218.9,3218.8,0.31081]
[1736917967071,3.2078,3219.0,3218.9,0.3108]
[1736917967883,0.4516,3219.2,3218.7,1.4408]